[Event "Titled Tuesday Blitz July 11 Early 2023"]
[White "Llanos, Guillermo"]
[Black "infinitypoint"]
[WhiteFideId "100358"]
[WhiteElo "2389"]
[BlackElo "2561"]
[Result "0-1"]
[Round "4"]
[TimeControl "180+2"]
[Date "2023.07.11"]
[WhiteClock "0:00:00"]
[BlackClock "0:00:07"]
[Board "133"]

1. g3 {[%clk 0:02:54]}  d5 {[%clk 0:02:59]} 2. Bg2 {[%clk 0:02:53]}  e5 {[%clk 0:02:58]} 3. Nf3 {[%clk 0:02:48]}  e4 {[%clk 0:02:55]} 4. Nd4 {[%clk 0:02:48]}  Nf6 {[%clk 0:02:51]} 5. d3 {[%clk 0:02:45]}  c6 {[%clk 0:02:42]} 6. O-O {[%clk 0:02:44]}  Bd6 {[%clk 0:02:41]} 7. c4 {[%clk 0:02:38]}  h6 {[%clk 0:02:38]} 8. cxd5 {[%clk 0:02:36]}  cxd5 {[%clk 0:02:39]} 9. Nc3 {[%clk 0:02:36]}  exd3 {[%clk 0:02:26]} 10. Qxd3 {[%clk 0:02:31]}  O-O {[%clk 0:02:24]} 11. Nxd5 {[%clk 0:02:29]}  Nxd5 {[%clk 0:02:24]} 12. Bxd5 {[%clk 0:02:27]}  Nd7 {[%clk 0:02:20]} 13. Nf5 {[%clk 0:02:15]}  Ne5 {[%clk 0:02:18]} 14. Qe4 {[%clk 0:02:06]}  Bxf5 {[%clk 0:02:05]} 15. Qxf5 {[%clk 0:02:06]}  Kh8 {[%clk 0:02:05]} 16. Be4 {[%clk 0:02:01]}  Ng6 {[%clk 0:02:03]} 17. Qh5 {[%clk 0:01:55]}  Qf6 {[%clk 0:02:00]} 18. Be3 {[%clk 0:01:50]}  Rae8 {[%clk 0:01:56]} 19. Bxb7 {[%clk 0:01:45]}  Re5 {[%clk 0:01:55]} 20. Qh3 {[%clk 0:01:43]}  Rb5 {[%clk 0:01:53]} 21. Bf3 {[%clk 0:01:36]}  Rxb2 {[%clk 0:01:52]} 22. Rfd1 {[%clk 0:01:34]}  Be5 {[%clk 0:01:51]} 23. Rac1 {[%clk 0:01:30]}  Rxa2 {[%clk 0:01:49]} 24. Rc6 {[%clk 0:01:30]}  Qe7 {[%clk 0:01:29]} 25. Bd5 {[%clk 0:01:26]}  Ra5 {[%clk 0:00:56]} 26. Bxh6 {[%clk 0:01:23]}  Kg8 {[%clk 0:00:52]} 27. Be3 {[%clk 0:01:13]}  Rd8 {[%clk 0:00:46]} 28. Rc8 {[%clk 0:01:05]}  Rxc8 {[%clk 0:00:39]} 29. Qxc8+ {[%clk 0:01:05]}  Qf8 {[%clk 0:00:39]} 30. Qc4 {[%clk 0:00:57]}  Bf6 {[%clk 0:00:36]} 31. Rb1 {[%clk 0:00:54]}  Ne5 {[%clk 0:00:35]} 32. Qb3 {[%clk 0:00:49]}  Qd6 {[%clk 0:00:34]} 33. Rd1 {[%clk 0:00:47]}  Qa6 {[%clk 0:00:29]} 34. Qb8+ {[%clk 0:00:42]}  Kh7 {[%clk 0:00:29]} 35. Be4+ {[%clk 0:00:39]}  g6 {[%clk 0:00:28]} 36. Rd2 {[%clk 0:00:23]}  Ra1+ {[%clk 0:00:27]} 37. Kg2 {[%clk 0:00:23]}  Nc4 {[%clk 0:00:25]} 38. Qf8 {[%clk 0:00:19]}  Ne5 {[%clk 0:00:11]} 39. Bf4 {[%clk 0:00:17]}  Qe6 {[%clk 0:00:10]} 40. Qh6+ {[%clk 0:00:16]}  Kg8 {[%clk 0:00:10]} 41. Rb2 {[%clk 0:00:14]}  Rd1 {[%clk 0:00:07]} 42. Rb8+ {[%clk 0:00:13]}  Rd8 {[%clk 0:00:07]} 43. Rxd8+ {[%clk 0:00:13]}  Bxd8 {[%clk 0:00:08]} 44. Bc2 {[%clk 0:00:08]}  Bb6 {[%clk 0:00:08]} 45. Qh3 {[%clk 0:00:07]}  Qc6+ {[%clk 0:00:08]} 46. e4 {[%clk 0:00:00]}  Qxc2 {[%clk 0:00:07]} 0-1


[Site "https://www.chess.com"]

[Event "Titled Tuesday Blitz July 11 Early 2023"]
[White "Ganiev, Roman"]
[Black "a-z30"]
[WhiteFideId "4131452"]
[WhiteElo "2557"]
[BlackElo "2384"]
[Result "1-0"]
[Round "4"]
[TimeControl "180+2"]
[Date "2023.07.11"]
[WhiteClock "0:00:52"]
[BlackClock "0:00:01"]
[Board "135"]

1. e4 {[%clk 0:02:52]}  d6 {[%clk 0:03:00]} 2. d4 {[%clk 0:02:51]}  Nf6 {[%clk 0:03:01]} 3. Nc3 {[%clk 0:02:41]}  g6 {[%clk 0:03:01]} 4. Nf3 {[%clk 0:02:41]}  Bg7 {[%clk 0:03:01]} 5. h3 {[%clk 0:02:40]}  O-O {[%clk 0:03:01]} 6. Be3 {[%clk 0:02:41]}  Nc6 {[%clk 0:03:01]} 7. Qd2 {[%clk 0:02:41]}  e5 {[%clk 0:03:01]} 8. d5 {[%clk 0:02:41]}  Ne7 {[%clk 0:02:55]} 9. g4 {[%clk 0:02:41]}  c6 {[%clk 0:02:54]} 10. dxc6 {[%clk 0:02:41]}  bxc6 {[%clk 0:02:44]} 11. O-O-O {[%clk 0:02:41]}  d5 {[%clk 0:02:44]} 12. Nxe5 {[%clk 0:02:40]}  Nxe4 {[%clk 0:02:28]} 13. Nxe4 {[%clk 0:02:40]}  Bxe5 {[%clk 0:02:28]} 14. Bd4 {[%clk 0:02:18]}  dxe4 {[%clk 0:01:32]} 15. Bxe5 {[%clk 0:02:18]}  Qxd2+ {[%clk 0:01:33]} 16. Rxd2 {[%clk 0:02:18]}  Nd5 {[%clk 0:01:33]} 17. c4 {[%clk 0:02:01]}  e3 {[%clk 0:01:00]} 18. fxe3 {[%clk 0:01:52]}  Nxe3 {[%clk 0:00:58]} 19. Be2 {[%clk 0:01:47]}  Re8 {[%clk 0:00:42]} 20. Bf6 {[%clk 0:01:40]}  Be6 {[%clk 0:00:12]} 21. b3 {[%clk 0:01:39]}  a5 {[%clk 0:00:11]} 22. Bf3 {[%clk 0:01:33]}  Rac8 {[%clk 0:00:08]} 23. Re1 {[%clk 0:01:27]}  Nxc4 {[%clk 0:00:06]} 24. bxc4 {[%clk 0:01:26]}  Bxc4 {[%clk 0:00:06]} 25. Rxe8+ {[%clk 0:01:25]}  Rxe8 {[%clk 0:00:06]} 26. Bxc6 {[%clk 0:01:24]}  Rc8 {[%clk 0:00:04]} 27. Kb2 {[%clk 0:01:23]}  Be6 {[%clk 0:00:02]} 28. Rd8+ {[%clk 0:01:23]}  Rxd8 {[%clk 0:00:01]} 29. Bxd8 {[%clk 0:01:23]}  h5 {[%clk 0:00:01]} 30. gxh5 {[%clk 0:01:14]}  Bxh3 {[%clk 0:00:02]} 31. hxg6 {[%clk 0:01:09]}  fxg6 {[%clk 0:00:03]} 32. Bxa5 {[%clk 0:01:09]}  Bc8 {[%clk 0:00:02]} 33. Bd5+ {[%clk 0:01:06]}  Kg7 {[%clk 0:00:02]} 34. Bc3+ {[%clk 0:01:06]}  Kh6 {[%clk 0:00:02]} 35. a4 {[%clk 0:01:05]}  g5 {[%clk 0:00:03]} 36. a5 {[%clk 0:01:04]}  Kh5 {[%clk 0:00:04]} 37. Ka3 {[%clk 0:01:02]}  g4 {[%clk 0:00:04]} 38. Kb4 {[%clk 0:01:01]}  Kh4 {[%clk 0:00:05]} 39. Bf6+ {[%clk 0:01:00]}  Kh3 {[%clk 0:00:06]} 40. Kc5 {[%clk 0:00:54]}  g3 {[%clk 0:00:06]} 41. Bd4 {[%clk 0:00:53]}  Kh2 {[%clk 0:00:05]} 42. Kb6 {[%clk 0:00:52]}  g2 {[%clk 0:00:05]} 43. Bb7 {[%clk 0:00:52]}  Be6 {[%clk 0:00:03]} 44. a6 {[%clk 0:00:52]}  Bc4 {[%clk 0:00:01]} 45. a7 {[%clk 0:00:52]} 1-0


[Site "https://www.chess.com"]

[Event "Titled Tuesday Blitz July 11 Early 2023"]
[White "Bruedigam, Martin"]
[Black "Mayaud, Raphael"]
[WhiteFideId "24608033"]
[BlackFideId "627151"]
[WhiteElo "2547"]
[BlackElo "2383"]
[Result "1-0"]
[Round "4"]
[TimeControl "180+2"]
[Date "2023.07.11"]
[WhiteClock "0:00:32"]
[BlackClock "0:00:10"]
[Board "137"]

1. c4 {[%clk 0:02:54]}  c6 {[%clk 0:02:57]} 2. e4 {[%clk 0:02:47]}  d5 {[%clk 0:02:57]} 3. exd5 {[%clk 0:02:47]}  cxd5 {[%clk 0:02:57]} 4. d4 {[%clk 0:02:48]}  Nf6 {[%clk 0:02:55]} 5. Nc3 {[%clk 0:02:48]}  Nc6 {[%clk 0:02:48]} 6. Nf3 {[%clk 0:02:40]}  g6 {[%clk 0:02:42]} 7. c5 {[%clk 0:02:39]}  Bg7 {[%clk 0:02:41]} 8. h3 {[%clk 0:02:38]}  O-O {[%clk 0:02:41]} 9. Be2 {[%clk 0:02:36]}  Ne4 {[%clk 0:02:35]} 10. O-O {[%clk 0:02:36]}  Be6 {[%clk 0:02:04]} 11. Qb3 {[%clk 0:02:33]}  Na5 {[%clk 0:01:59]} 12. Qc2 {[%clk 0:02:31]}  Nxc3 {[%clk 0:01:44]} 13. Qxc3 {[%clk 0:02:30]}  Nc6 {[%clk 0:01:41]} 14. b4 {[%clk 0:02:29]}  a6 {[%clk 0:01:38]} 15. a4 {[%clk 0:02:28]}  Bf5 {[%clk 0:01:36]} 16. Bf4 {[%clk 0:02:22]}  e5 {[%clk 0:01:21]} 17. dxe5 {[%clk 0:01:57]}  d4 {[%clk 0:01:21]} 18. Qc4 {[%clk 0:01:57]}  Be6 {[%clk 0:01:14]} 19. Qc1 {[%clk 0:01:56]}  Nxb4 {[%clk 0:01:12]} 20. Rd1 {[%clk 0:01:56]}  Nc6 {[%clk 0:01:02]} 21. Qb2 {[%clk 0:01:49]}  Qd5 {[%clk 0:00:56]} 22. Nxd4 {[%clk 0:01:44]}  Nxd4 {[%clk 0:00:49]} 23. Qxd4 {[%clk 0:01:43]}  Rfd8 {[%clk 0:00:44]} 24. Qxd5 {[%clk 0:01:39]}  Rxd5 {[%clk 0:00:44]} 25. Rxd5 {[%clk 0:01:35]}  Bxd5 {[%clk 0:00:45]} 26. a5 {[%clk 0:01:20]}  Bc6 {[%clk 0:00:45]} 27. Rd1 {[%clk 0:01:18]}  Re8 {[%clk 0:00:45]} 28. Bc4 {[%clk 0:00:45]}  Kf8 {[%clk 0:00:32]} 29. Re1 {[%clk 0:00:36]}  Rd8 {[%clk 0:00:26]} 30. e6 {[%clk 0:00:36]}  Rd4 {[%clk 0:00:10]} 31. Bd6+ {[%clk 0:00:32]} 1-0


[Site "https://www.chess.com"]

[Event "Titled Tuesday Blitz July 11 Early 2023"]
[White "Barbot, Pierre"]
[Black "Siniauski, Artsiom"]
[WhiteFideId "663727"]
[BlackFideId "13512269"]
[WhiteElo "2379"]
[BlackElo "2543"]
[Result "0-1"]
[Round "4"]
[TimeControl "180+2"]
[Date "2023.07.11"]
[WhiteClock "0:00:00"]
[BlackClock "0:01:17"]
[Board "138"]

1. d4 {[%clk 0:03:00]}  Nf6 {[%clk 0:02:57]} 2. c4 {[%clk 0:03:00]}  d6 {[%clk 0:02:58]} 3. Nf3 {[%clk 0:02:59]}  g6 {[%clk 0:02:57]} 4. Nc3 {[%clk 0:02:57]}  Bg7 {[%clk 0:02:58]} 5. e4 {[%clk 0:02:50]}  O-O {[%clk 0:02:59]} 6. Be2 {[%clk 0:02:47]}  Na6 {[%clk 0:02:59]} 7. Bg5 {[%clk 0:02:19]}  c5 {[%clk 0:02:56]} 8. d5 {[%clk 0:02:14]}  h6 {[%clk 0:02:56]} 9. Be3 {[%clk 0:02:13]}  Nc7 {[%clk 0:02:55]} 10. Nd2 {[%clk 0:01:55]}  a6 {[%clk 0:02:54]} 11. a4 {[%clk 0:01:53]}  b6 {[%clk 0:02:50]} 12. O-O {[%clk 0:01:49]}  Bd7 {[%clk 0:02:50]} 13. f4 {[%clk 0:01:42]}  b5 {[%clk 0:02:46]} 14. axb5 {[%clk 0:01:16]}  axb5 {[%clk 0:02:46]} 15. cxb5 {[%clk 0:01:16]}  Rxa1 {[%clk 0:02:44]} 16. Qxa1 {[%clk 0:01:17]}  Qb8 {[%clk 0:02:43]} 17. Bc4 {[%clk 0:00:45]}  Nxb5 {[%clk 0:02:38]} 18. h3 {[%clk 0:00:26]}  Nd4 {[%clk 0:02:28]} 19. Qb1 {[%clk 0:00:08]}  Qb4 {[%clk 0:02:23]} 20. Bd3 {[%clk 0:00:04]}  Nh5 {[%clk 0:02:16]} 21. Nc4 {[%clk 0:00:03]}  Rb8 {[%clk 0:01:54]} 22. e5 {[%clk 0:00:03]}  Ng3 {[%clk 0:01:16]} 23. Re1 {[%clk 0:00:00]}  Ngf5 {[%clk 0:01:17]} 0-1


[Site "https://www.chess.com"]

[Event "Titled Tuesday Blitz July 11 Early 2023"]
[White "Palencia Morales, Wilson Guillermo"]
[Black "Goldin, Roman"]
[WhiteFideId "4401859"]
[BlackFideId "2803860"]
[WhiteElo "2537"]
[BlackElo "2379"]
[Result "1-0"]
[Round "4"]
[TimeControl "180+2"]
[Date "2023.07.11"]
[WhiteClock "0:01:04"]
[BlackClock "0:00:00"]
[Board "139"]

1. d4 {[%clk 0:03:00]}  Nf6 {[%clk 0:02:59]} 2. c4 {[%clk 0:03:01]}  Nc6 {[%clk 0:02:57]} 3. Nf3 {[%clk 0:02:59]}  e6 {[%clk 0:02:57]} 4. g3 {[%clk 0:02:59]}  Bb4+ {[%clk 0:02:57]} 5. Nbd2 {[%clk 0:02:59]}  O-O {[%clk 0:02:55]} 6. Bg2 {[%clk 0:02:59]}  d6 {[%clk 0:02:55]} 7. O-O {[%clk 0:02:58]}  Bxd2 {[%clk 0:02:55]} 8. Qxd2 {[%clk 0:02:56]}  Qe7 {[%clk 0:02:54]} 9. b4 {[%clk 0:02:55]}  e5 {[%clk 0:02:54]} 10. dxe5 {[%clk 0:02:55]}  dxe5 {[%clk 0:02:45]} 11. b5 {[%clk 0:02:55]}  Rd8 {[%clk 0:02:45]} 12. Qc3 {[%clk 0:02:54]}  Nd4 {[%clk 0:02:44]} 13. Nxd4 {[%clk 0:02:54]}  exd4 {[%clk 0:02:44]} 14. Qd3 {[%clk 0:02:55]}  a6 {[%clk 0:02:16]} 15. Ba3 {[%clk 0:02:40]}  Qe5 {[%clk 0:02:11]} 16. f4 {[%clk 0:02:29]}  Qe3+ {[%clk 0:01:30]} 17. Qxe3 {[%clk 0:02:28]}  dxe3 {[%clk 0:01:30]} 18. Be7 {[%clk 0:02:29]}  Re8 {[%clk 0:01:20]} 19. Bxf6 {[%clk 0:02:22]}  gxf6 {[%clk 0:01:21]} 20. Bf3 {[%clk 0:02:14]}  axb5 {[%clk 0:01:19]} 21. cxb5 {[%clk 0:02:14]}  Be6 {[%clk 0:01:19]} 22. a4 {[%clk 0:02:12]}  Ra7 {[%clk 0:01:01]} 23. a5 {[%clk 0:02:11]}  Bc4 {[%clk 0:00:53]} 24. b6 {[%clk 0:02:09]}  cxb6 {[%clk 0:00:48]} 25. axb6 {[%clk 0:02:10]}  Rxa1 {[%clk 0:00:47]} 26. Rxa1 {[%clk 0:02:11]}  Ba6 {[%clk 0:00:46]} 27. Kf1 {[%clk 0:01:50]}  Re6 {[%clk 0:00:46]} 28. Rb1 {[%clk 0:01:49]}  Rd6 {[%clk 0:00:40]} 29. Ke1 {[%clk 0:01:48]}  Kf8 {[%clk 0:00:34]} 30. Rb3 {[%clk 0:01:34]}  h6 {[%clk 0:00:31]} 31. Rxe3 {[%clk 0:01:23]}  Rxb6 {[%clk 0:00:31]} 32. Rc3 {[%clk 0:01:21]}  Rb2 {[%clk 0:00:28]} 33. Rc7 {[%clk 0:01:17]}  Kg7 {[%clk 0:00:11]} 34. Bh5 {[%clk 0:01:16]}  Kg8 {[%clk 0:00:07]} 35. Bxf7+ {[%clk 0:01:15]}  Kf8 {[%clk 0:00:07]} 36. Bh5 {[%clk 0:01:15]}  Rb1+ {[%clk 0:00:06]} 37. Kf2 {[%clk 0:01:15]}  Rb5 {[%clk 0:00:04]} 38. Bf3 {[%clk 0:01:11]}  Rb2 {[%clk 0:00:04]} 39. g4 {[%clk 0:01:11]}  Rb6 {[%clk 0:00:02]} 40. Rh7 {[%clk 0:01:09]}  Rb4 {[%clk 0:00:00]} 41. f5 {[%clk 0:01:04]} 1-0


[Site "https://www.chess.com"]

[Event "Titled Tuesday Blitz July 11 Early 2023"]
[White "Demin, Vladimir"]
[Black "Harriott, Tyrell"]
[WhiteFideId "4167457"]
[BlackFideId "2086484"]
[WhiteElo "2533"]
[BlackElo "2377"]
[Result "1-0"]
[Round "4"]
[TimeControl "180+2"]
[Date "2023.07.11"]
[WhiteClock "0:00:36"]
[BlackClock "0:00:17"]
[Board "140"]

1. d4 {[%clk 0:03:00]}  e6 {[%clk 0:02:52]} 2. e4 {[%clk 0:03:00]}  d5 {[%clk 0:02:53]} 3. Nc3 {[%clk 0:02:55]}  f5 {[%clk 0:02:49]} 4. exf5 {[%clk 0:02:53]}  exf5 {[%clk 0:02:49]} 5. Nf3 {[%clk 0:02:53]}  Nf6 {[%clk 0:02:50]} 6. Ne5 {[%clk 0:02:53]}  Bd6 {[%clk 0:02:49]} 7. Bg5 {[%clk 0:02:49]}  O-O {[%clk 0:02:47]} 8. Nxd5 {[%clk 0:02:38]}  Bxe5 {[%clk 0:02:39]} 9. Bc4 {[%clk 0:02:35]}  Be6 {[%clk 0:02:19]} 10. dxe5 {[%clk 0:02:03]}  Bxd5 {[%clk 0:02:15]} 11. Bxf6 {[%clk 0:01:58]}  gxf6 {[%clk 0:02:00]} 12. Qxd5+ {[%clk 0:01:58]}  Kh8 {[%clk 0:01:56]} 13. Qxd8 {[%clk 0:01:41]}  Rxd8 {[%clk 0:01:55]} 14. exf6 {[%clk 0:01:41]}  Re8+ {[%clk 0:01:50]} 15. Kd2 {[%clk 0:01:40]}  Nc6 {[%clk 0:01:49]} 16. Rae1 {[%clk 0:01:37]}  Rad8+ {[%clk 0:01:48]} 17. Kc1 {[%clk 0:01:37]}  Ne5 {[%clk 0:01:45]} 18. Bb3 {[%clk 0:01:35]}  Ng4 {[%clk 0:01:38]} 19. f7 {[%clk 0:01:35]}  Rf8 {[%clk 0:01:38]} 20. h3 {[%clk 0:01:28]}  Nxf2 {[%clk 0:01:36]} 21. Rhf1 {[%clk 0:01:28]}  Ne4 {[%clk 0:01:33]} 22. Rxf5 {[%clk 0:01:28]}  Nd6 {[%clk 0:01:33]} 23. Rf3 {[%clk 0:01:24]}  Rd7 {[%clk 0:01:26]} 24. Ref1 {[%clk 0:01:24]}  Re7 {[%clk 0:01:23]} 25. g4 {[%clk 0:01:23]}  Kg7 {[%clk 0:01:22]} 26. h4 {[%clk 0:01:23]}  Re4 {[%clk 0:01:13]} 27. Rf4 {[%clk 0:01:18]}  Re3 {[%clk 0:01:07]} 28. a4 {[%clk 0:01:17]}  Rh3 {[%clk 0:01:06]} 29. g5 {[%clk 0:01:16]}  Re3 {[%clk 0:01:04]} 30. h5 {[%clk 0:01:16]}  Rg3 {[%clk 0:01:04]} 31. h6+ {[%clk 0:01:11]}  Kh8 {[%clk 0:01:03]} 32. Re1 {[%clk 0:01:00]}  Rxg5 {[%clk 0:01:00]} 33. Re7 {[%clk 0:01:00]}  Rg6 {[%clk 0:00:39]} 34. Rxc7 {[%clk 0:00:52]}  Rxh6 {[%clk 0:00:39]} 35. Rd7 {[%clk 0:00:51]}  Kg7 {[%clk 0:00:37]} 36. Rd4 {[%clk 0:00:50]}  Nxf7 {[%clk 0:00:33]} 37. Rxb7 {[%clk 0:00:46]}  a6 {[%clk 0:00:33]} 38. Rdd7 {[%clk 0:00:42]}  Rf6 {[%clk 0:00:32]} 39. Kd2 {[%clk 0:00:42]}  h5 {[%clk 0:00:31]} 40. Ke2 {[%clk 0:00:40]}  Re8+ {[%clk 0:00:30]} 41. Kd2 {[%clk 0:00:39]}  Rf8 {[%clk 0:00:30]} 42. Bxf7 {[%clk 0:00:36]}  R8xf7 {[%clk 0:00:30]} 43. Rxf7+ {[%clk 0:00:37]}  Rxf7 {[%clk 0:00:31]} 44. Rxf7+ {[%clk 0:00:36]}  Kxf7 {[%clk 0:00:32]} 45. Ke3 {[%clk 0:00:35]}  Ke6 {[%clk 0:00:32]} 46. b4 {[%clk 0:00:32]}  Kd5 {[%clk 0:00:32]} 47. b5 {[%clk 0:00:32]}  axb5 {[%clk 0:00:31]} 48. axb5 {[%clk 0:00:32]}  Kc5 {[%clk 0:00:31]} 49. c4 {[%clk 0:00:33]}  Kb6 {[%clk 0:00:23]} 50. Kf3 {[%clk 0:00:32]}  Kc5 {[%clk 0:00:24]} 51. Kg3 {[%clk 0:00:33]}  Kb6 {[%clk 0:00:23]} 52. Kh4 {[%clk 0:00:33]}  Kc5 {[%clk 0:00:24]} 53. Kxh5 {[%clk 0:00:33]}  Kxc4 {[%clk 0:00:24]} 54. b6 {[%clk 0:00:33]}  Kc5 {[%clk 0:00:25]} 55. b7 {[%clk 0:00:34]}  Kd6 {[%clk 0:00:25]} 56. b8=Q+ {[%clk 0:00:35]}  Ke6 {[%clk 0:00:26]} 57. Qc7 {[%clk 0:00:35]}  Kd5 {[%clk 0:00:22]} 58. Qe7 {[%clk 0:00:34]}  Kd4 {[%clk 0:00:22]} 59. Qe6 {[%clk 0:00:35]}  Kc5 {[%clk 0:00:21]} 60. Kg5 {[%clk 0:00:34]}  Kd4 {[%clk 0:00:21]} 61. Kf4 {[%clk 0:00:34]}  Kc5 {[%clk 0:00:21]} 62. Qd7 {[%clk 0:00:34]}  Kc4 {[%clk 0:00:19]} 63. Ke4 {[%clk 0:00:34]}  Kc3 {[%clk 0:00:20]} 64. Qd3+ {[%clk 0:00:34]}  Kb2 {[%clk 0:00:20]} 65. Qc4 {[%clk 0:00:34]}  Ka3 {[%clk 0:00:20]} 66. Qb5 {[%clk 0:00:34]}  Ka2 {[%clk 0:00:20]} 67. Kd3 {[%clk 0:00:35]}  Ka1 {[%clk 0:00:17]} 68. Kc2 {[%clk 0:00:36]} 1-0


[Site "https://www.chess.com"]

[Event "Titled Tuesday Blitz July 11 Early 2023"]
[White "Yurovskykh, Oleksandr"]
[Black "Ncatt"]
[WhiteFideId "14134020"]
[WhiteElo "2530"]
[BlackElo "2375"]
[Result "1/2-1/2"]
[Round "4"]
[TimeControl "180+2"]
[Date "2023.07.11"]
[WhiteClock "0:00:02"]
[BlackClock "0:00:16"]
[Board "141"]

1. d4 {[%clk 0:03:00]}  d5 {[%clk 0:02:58]} 2. Bf4 {[%clk 0:03:00]}  Nf6 {[%clk 0:02:57]} 3. e3 {[%clk 0:03:00]}  c5 {[%clk 0:02:56]} 4. c3 {[%clk 0:03:01]}  Nc6 {[%clk 0:02:56]} 5. Nd2 {[%clk 0:03:01]}  cxd4 {[%clk 0:02:52]} 6. exd4 {[%clk 0:03:01]}  Bf5 {[%clk 0:02:52]} 7. Ngf3 {[%clk 0:03:01]}  e6 {[%clk 0:02:51]} 8. Qb3 {[%clk 0:02:50]}  Qc8 {[%clk 0:02:49]} 9. Nh4 {[%clk 0:02:46]}  Bg6 {[%clk 0:02:48]} 10. Nxg6 {[%clk 0:02:45]}  hxg6 {[%clk 0:02:48]} 11. h3 {[%clk 0:02:42]}  Be7 {[%clk 0:02:39]} 12. Bd3 {[%clk 0:02:41]}  a6 {[%clk 0:02:39]} 13. a4 {[%clk 0:02:36]}  Na5 {[%clk 0:02:33]} 14. Qd1 {[%clk 0:02:31]}  Nc4 {[%clk 0:02:33]} 15. Nxc4 {[%clk 0:02:23]}  dxc4 {[%clk 0:02:33]} 16. Bc2 {[%clk 0:02:22]}  Nd5 {[%clk 0:02:31]} 17. Be5 {[%clk 0:02:21]}  Bf6 {[%clk 0:02:31]} 18. Qe2 {[%clk 0:02:21]}  b5 {[%clk 0:02:27]} 19. axb5 {[%clk 0:02:17]}  axb5 {[%clk 0:02:27]} 20. O-O {[%clk 0:02:18]}  O-O {[%clk 0:02:25]} 21. Be4 {[%clk 0:01:46]}  Qc6 {[%clk 0:02:20]} 22. Qf3 {[%clk 0:01:40]}  Bxe5 {[%clk 0:02:07]} 23. dxe5 {[%clk 0:01:41]}  Rxa1 {[%clk 0:02:07]} 24. Rxa1 {[%clk 0:01:40]}  Ra8 {[%clk 0:02:08]} 25. Rd1 {[%clk 0:01:20]}  Ra2 {[%clk 0:02:07]} 26. Bxd5 {[%clk 0:01:16]}  exd5 {[%clk 0:02:04]} 27. Rxd5 {[%clk 0:01:17]}  Qe8 {[%clk 0:01:30]} 28. Qe2 {[%clk 0:01:05]}  Kh7 {[%clk 0:01:24]} 29. Qd2 {[%clk 0:01:03]}  Ra1+ {[%clk 0:01:12]} 30. Kh2 {[%clk 0:01:02]}  Rb1 {[%clk 0:01:11]} 31. g3 {[%clk 0:00:51]}  Qc6 {[%clk 0:01:08]} 32. Qd4 {[%clk 0:00:49]}  g5 {[%clk 0:00:55]} 33. Qe4+ {[%clk 0:00:45]}  g6 {[%clk 0:00:54]} 34. Qxb1 {[%clk 0:00:44]}  Qxd5 {[%clk 0:00:54]} 35. Qe1 {[%clk 0:00:45]}  Qf3 {[%clk 0:00:46]} 36. Qe3 {[%clk 0:00:32]}  Qf5 {[%clk 0:00:41]} 37. g4 {[%clk 0:00:25]}  Qc2 {[%clk 0:00:38]} 38. Qf3 {[%clk 0:00:25]}  Kg8 {[%clk 0:00:34]} 39. Kg2 {[%clk 0:00:10]}  Qxb2 {[%clk 0:00:32]} 40. e6 {[%clk 0:00:08]}  fxe6 {[%clk 0:00:29]} 41. Qf6 {[%clk 0:00:09]}  b4 {[%clk 0:00:20]} 42. Qxg6+ {[%clk 0:00:08]}  Kf8 {[%clk 0:00:20]} 43. Qf6+ {[%clk 0:00:08]}  Ke8 {[%clk 0:00:20]} 44. Qxe6+ {[%clk 0:00:09]}  Kf8 {[%clk 0:00:20]} 45. Qf5+ {[%clk 0:00:06]}  Ke8 {[%clk 0:00:19]} 46. Qe5+ {[%clk 0:00:05]}  Kf8 {[%clk 0:00:20]} 47. Qc5+ {[%clk 0:00:05]}  Ke8 {[%clk 0:00:18]} 48. Qc6+ {[%clk 0:00:06]}  Kf8 {[%clk 0:00:18]} 49. Qc5+ {[%clk 0:00:05]}  Ke8 {[%clk 0:00:18]} 50. Qb5+ {[%clk 0:00:03]}  Kf8 {[%clk 0:00:17]} 51. Qb8+ {[%clk 0:00:03]}  Kf7 {[%clk 0:00:17]} 52. Qc7+ {[%clk 0:00:01]}  Ke8 {[%clk 0:00:17]} 53. Qc6+ {[%clk 0:00:02]}  Kf8 {[%clk 0:00:16]} 54. Qc5+ {[%clk 0:00:02]} 1/2-1/2


[Site "https://www.chess.com"]

[Event "Titled Tuesday Blitz July 11 Early 2023"]
[White "Seletsky, Grigory"]
[Black "Bilan, Danila"]
[WhiteFideId "14112191"]
[BlackFideId "24161918"]
[WhiteElo "2373"]
[BlackElo "2526"]
[Result "0-1"]
[Round "4"]
[TimeControl "180+2"]
[Date "2023.07.11"]
[WhiteClock "0:00:00"]
[BlackClock "0:00:05"]
[Board "142"]

1. e3 {[%clk 0:02:58]}  d5 {[%clk 0:02:59]} 2. d4 {[%clk 0:02:59]}  Nf6 {[%clk 0:02:59]} 3. c4 {[%clk 0:02:59]}  c6 {[%clk 0:02:59]} 4. Nc3 {[%clk 0:03:00]}  e6 {[%clk 0:02:59]} 5. Nf3 {[%clk 0:03:01]}  Nbd7 {[%clk 0:03:00]} 6. Bd3 {[%clk 0:03:01]}  dxc4 {[%clk 0:03:01]} 7. Bxc4 {[%clk 0:03:00]}  b5 {[%clk 0:03:01]} 8. Bd3 {[%clk 0:02:59]}  b4 {[%clk 0:03:02]} 9. Ne4 {[%clk 0:02:59]}  Nxe4 {[%clk 0:03:02]} 10. Bxe4 {[%clk 0:03:00]}  Bb7 {[%clk 0:03:03]} 11. Qc2 {[%clk 0:02:56]}  Qb6 {[%clk 0:02:59]} 12. O-O {[%clk 0:02:53]}  c5 {[%clk 0:02:51]} 13. Bxb7 {[%clk 0:02:48]}  Qxb7 {[%clk 0:02:51]} 14. Qa4 {[%clk 0:02:44]}  cxd4 {[%clk 0:02:17]} 15. Nxd4 {[%clk 0:02:37]}  Be7 {[%clk 0:02:11]} 16. Rd1 {[%clk 0:02:37]}  O-O {[%clk 0:02:01]} 17. b3 {[%clk 0:01:48]}  Bf6 {[%clk 0:01:41]} 18. Bb2 {[%clk 0:01:46]}  Nc5 {[%clk 0:01:26]} 19. Qa5 {[%clk 0:01:41]}  Ne4 {[%clk 0:01:25]} 20. Rac1 {[%clk 0:01:36]}  Rfc8 {[%clk 0:01:23]} 21. f3 {[%clk 0:00:53]}  Nd6 {[%clk 0:00:27]} 22. e4 {[%clk 0:00:29]}  Be7 {[%clk 0:00:06]} 23. Qe5 {[%clk 0:00:18]}  Ne8 {[%clk 0:00:05]} 24. Nxe6 {[%clk 0:00:15]}  Bf6 {[%clk 0:00:04]} 25. Qd5 {[%clk 0:00:09]}  Qxd5 {[%clk 0:00:04]} 26. exd5 {[%clk 0:00:07]}  Bxb2 {[%clk 0:00:04]} 27. Rxc8 {[%clk 0:00:04]}  Rxc8 {[%clk 0:00:05]} 28. Nd4 {[%clk 0:00:03]}  Bxd4+ {[%clk 0:00:05]} 29. Rxd4 {[%clk 0:00:02]}  a5 {[%clk 0:00:05]} 30. Kf2 {[%clk 0:00:02]}  Nd6 {[%clk 0:00:05]} 31. Ke3 {[%clk 0:00:02]}  f6 {[%clk 0:00:05]} 32. Kf4 {[%clk 0:00:02]}  Kf7 {[%clk 0:00:06]} 33. h4 {[%clk 0:00:02]}  Rc2 {[%clk 0:00:06]} 34. g4 {[%clk 0:00:02]}  Rxa2 {[%clk 0:00:06]} 35. Rd1 {[%clk 0:00:02]}  Rc2 {[%clk 0:00:06]} 36. Ra1 {[%clk 0:00:01]}  Rc5 {[%clk 0:00:06]} 37. Rd1 {[%clk 0:00:00]}  a4 {[%clk 0:00:05]} 0-1


[Site "https://www.chess.com"]